[Event "Titled Tuesday Blitz June 21 Late 2022"]
[White "So, Wesley"]
[Black "Jaracz, Pawel"]
[WhiteFideId "5202213"]
[BlackFideId "1102222"]
[WhiteElo "2742"]
[BlackElo "2459"]
[Result "1-0"]
[Round "02"]
[TimeControl "180+1"]
[Date "2022.06.21"]
[WhiteClock "0:00:45"]
[BlackClock "0:00:01"]

1. e4 {[%clk 0:03:00]}  e5 {[%clk 0:02:53]} 2. Nf3 {[%clk 0:03:00]}  Nc6 {[%clk 0:02:53]} 3. Bc4 {[%clk 0:03:01]}  Bc5 {[%clk 0:02:52]} 4. c3 {[%clk 0:03:01]}  Nf6 {[%clk 0:02:52]} 5. d3 {[%clk 0:03:01]}  d6 {[%clk 0:02:51]} 6. O-O {[%clk 0:03:01]}  Bb6 {[%clk 0:02:47]} 7. Bg5 {[%clk 0:03:00]}  h6 {[%clk 0:02:47]} 8. Bh4 {[%clk 0:03:00]}  g5 {[%clk 0:02:46]} 9. Bg3 {[%clk 0:03:00]}  Bg4 {[%clk 0:02:39]} 10. Nbd2 {[%clk 0:02:54]}  Nh5 {[%clk 0:02:31]} 11. Kh1 {[%clk 0:02:42]}  Nf4 {[%clk 0:02:26]} 12. a4 {[%clk 0:02:32]}  a5 {[%clk 0:02:22]} 13. Bb5 {[%clk 0:02:26]}  Qf6 {[%clk 0:02:19]} 14. Nc4 {[%clk 0:02:15]}  h5 {[%clk 0:01:51]} 15. Ne3 {[%clk 0:02:11]}  O-O-O {[%clk 0:01:46]} 16. b4 {[%clk 0:01:59]}  Ne7 {[%clk 0:01:42]} 17. Rb1 {[%clk 0:01:21]}  Be6 {[%clk 0:01:41]} 18. bxa5 {[%clk 0:01:15]}  Bxa5 {[%clk 0:01:41]} 19. Bc4 {[%clk 0:01:15]}  c6 {[%clk 0:01:20]} 20. Bxf4 {[%clk 0:01:10]}  gxf4 {[%clk 0:01:19]} 21. Bxe6+ {[%clk 0:01:10]}  fxe6 {[%clk 0:00:49]} 22. Nc4 {[%clk 0:01:11]}  Bc7 {[%clk 0:00:45]} 23. Qb3 {[%clk 0:01:11]}  Kd7 {[%clk 0:00:40]} 24. Qxb7 {[%clk 0:01:08]}  Rb8 {[%clk 0:00:38]} 25. Qa7 {[%clk 0:01:06]}  Nc8 {[%clk 0:00:32]} 26. Qa6 {[%clk 0:01:06]}  Rxb1 {[%clk 0:00:31]} 27. Rxb1 {[%clk 0:01:06]}  d5 {[%clk 0:00:29]} 28. Na5 {[%clk 0:01:05]}  Bxa5 {[%clk 0:00:28]} 29. Qxa5 {[%clk 0:01:06]}  Rd8 {[%clk 0:00:13]} 30. d4 {[%clk 0:00:55]}  exd4 {[%clk 0:00:13]} 31. cxd4 {[%clk 0:00:56]}  Ke8 {[%clk 0:00:11]} 32. Qc7 {[%clk 0:00:54]}  Ne7 {[%clk 0:00:11]} 33. Ne5 {[%clk 0:00:46]}  f3 {[%clk 0:00:07]} 34. Rb8 {[%clk 0:00:44]}  fxg2+ {[%clk 0:00:06]} 35. Kg1 {[%clk 0:00:44]}  Rxb8 {[%clk 0:00:01]} 36. Qxb8+ {[%clk 0:00:45]} 1-0


[Site "https://www.chess.com"]

[Event "Titled Tuesday Blitz June 21 Late 2022"]
[White "Stanisz, Patryk"]
[Black "Golubev, Mikhail"]
[WhiteFideId "1123106"]
[BlackFideId "14100983"]
[WhiteElo "1833"]
[BlackElo "2374"]
[Result "0-1"]
[Round "02"]
[TimeControl "180+1"]
[Date "2022.06.22"]
[WhiteClock "0:00:14"]
[BlackClock "0:01:10"]

1. d4 {[%clk 0:03:00]}  Nf6 {[%clk 0:02:59]} 2. c4 {[%clk 0:03:01]}  g6 {[%clk 0:03:00]} 3. Nc3 {[%clk 0:03:01]}  Bg7 {[%clk 0:03:00]} 4. e4 {[%clk 0:03:01]}  d6 {[%clk 0:03:01]} 5. Bd3 {[%clk 0:03:02]}  O-O {[%clk 0:02:57]} 6. Nge2 {[%clk 0:03:03]}  Nc6 {[%clk 0:02:54]} 7. O-O {[%clk 0:03:03]}  Nh5 {[%clk 0:02:54]} 8. Be3 {[%clk 0:02:58]}  e5 {[%clk 0:02:52]} 9. d5 {[%clk 0:02:56]}  Ne7 {[%clk 0:02:44]} 10. b4 {[%clk 0:02:42]}  f5 {[%clk 0:02:33]} 11. f3 {[%clk 0:02:42]}  f4 {[%clk 0:02:28]} 12. Bf2 {[%clk 0:02:41]}  g5 {[%clk 0:02:26]} 13. c5 {[%clk 0:02:38]}  g4 {[%clk 0:02:22]} 14. Nc1 {[%clk 0:02:33]}  g3 {[%clk 0:02:17]} 15. hxg3 {[%clk 0:02:31]}  fxg3 {[%clk 0:02:15]} 16. Be3 {[%clk 0:02:28]}  Ng6 {[%clk 0:02:13]} 17. N1e2 {[%clk 0:01:37]}  Qh4 {[%clk 0:02:09]} 18. Nxg3 {[%clk 0:01:37]}  Nxg3 {[%clk 0:02:06]} 19. Re1 {[%clk 0:01:33]}  Nf4 {[%clk 0:02:01]} 20. Bxf4 {[%clk 0:01:27]}  exf4 {[%clk 0:02:00]} 21. e5 {[%clk 0:00:50]}  Bxe5 {[%clk 0:01:49]} 22. Rxe5 {[%clk 0:00:25]}  dxe5 {[%clk 0:01:50]} 23. d6 {[%clk 0:00:16]}  Qh1+ {[%clk 0:01:44]} 24. Kf2 {[%clk 0:00:17]}  Qxd1 {[%clk 0:01:44]} 25. Rxd1 {[%clk 0:00:18]}  cxd6 {[%clk 0:01:40]} 26. Bc4+ {[%clk 0:00:18]}  Kg7 {[%clk 0:01:36]} 27. cxd6 {[%clk 0:00:17]}  Bd7 {[%clk 0:01:29]} 28. Ne4 {[%clk 0:00:15]}  Nxe4+ {[%clk 0:01:28]} 29. fxe4 {[%clk 0:00:16]}  Rac8 {[%clk 0:01:25]} 30. Bb3 {[%clk 0:00:15]}  Rf6 {[%clk 0:01:20]} 31. Rd5 {[%clk 0:00:15]}  Re8 {[%clk 0:01:10]} 32. Rc5 {[%clk 0:00:14]} 0-1


[Site "https://www.chess.com"]

[Event "Titled Tuesday Blitz June 21 Late 2022"]
[White "Suleymanli, Aydin"]
[Black "Janaszak, Dawid"]
[WhiteFideId "13413937"]
[BlackFideId "1119206"]
[WhiteElo "2481"]
[BlackElo "2199"]
[Result "1-0"]
[Round "02"]
[TimeControl "180+1"]
[Date "2022.06.21"]
[WhiteClock "0:00:08"]
[BlackClock "0:00:05"]

1. e4 {[%clk 0:03:00]}  c5 {[%clk 0:02:59]} 2. Nf3 {[%clk 0:02:56]}  Nc6 {[%clk 0:02:59]} 3. Bb5 {[%clk 0:02:48]}  g6 {[%clk 0:02:59]} 4. h4 {[%clk 0:02:46]}  h6 {[%clk 0:02:53]} 5. c3 {[%clk 0:02:44]}  Nf6 {[%clk 0:02:49]} 6. d3 {[%clk 0:02:37]}  Bg7 {[%clk 0:02:47]} 7. Bf4 {[%clk 0:02:25]}  d6 {[%clk 0:02:44]} 8. Nbd2 {[%clk 0:02:22]}  O-O {[%clk 0:02:39]} 9. a4 {[%clk 0:02:20]}  e5 {[%clk 0:02:30]} 10. Bh2 {[%clk 0:02:13]}  Ng4 {[%clk 0:02:23]} 11. Bg3 {[%clk 0:02:08]}  Na5 {[%clk 0:02:03]} 12. h5 {[%clk 0:01:59]}  g5 {[%clk 0:02:01]} 13. Nf1 {[%clk 0:01:49]}  f5 {[%clk 0:01:54]} 14. exf5 {[%clk 0:01:48]}  Bxf5 {[%clk 0:01:55]} 15. N3d2 {[%clk 0:01:43]}  a6 {[%clk 0:01:51]} 16. Bc4+ {[%clk 0:01:39]}  Nxc4 {[%clk 0:01:47]} 17. dxc4 {[%clk 0:01:40]}  Qd7 {[%clk 0:01:32]} 18. a5 {[%clk 0:01:34]}  Rae8 {[%clk 0:01:30]} 19. Qa4 {[%clk 0:01:24]}  Qf7 {[%clk 0:01:30]} 20. O-O-O {[%clk 0:01:17]}  Rb8 {[%clk 0:01:14]} 21. f3 {[%clk 0:01:13]}  Nf6 {[%clk 0:01:02]} 22. Ne3 {[%clk 0:01:11]}  Bh7 {[%clk 0:00:59]} 23. Bh2 {[%clk 0:00:55]}  Nxh5 {[%clk 0:00:58]} 24. Ne4 {[%clk 0:00:55]}  Bxe4 {[%clk 0:00:54]} 25. fxe4 {[%clk 0:00:56]}  b5 {[%clk 0:00:48]} 26. axb6 {[%clk 0:00:54]}  Rxb6 {[%clk 0:00:48]} 27. Rhf1 {[%clk 0:00:52]}  Qe8 {[%clk 0:00:44]} 28. Rxf8+ {[%clk 0:00:50]}  Qxf8 {[%clk 0:00:43]} 29. Nf5 {[%clk 0:00:51]}  Nf4 {[%clk 0:00:39]} 30. Qc2 {[%clk 0:00:48]}  Qf6 {[%clk 0:00:33]} 31. Bg1 {[%clk 0:00:44]}  Bf8 {[%clk 0:00:32]} 32. Be3 {[%clk 0:00:43]}  Qe6 {[%clk 0:00:25]} 33. g3 {[%clk 0:00:41]}  Ng6 {[%clk 0:00:23]} 34. Qa4 {[%clk 0:00:36]}  Ne7 {[%clk 0:00:18]} 35. Rf1 {[%clk 0:00:35]}  Nc6 {[%clk 0:00:13]} 36. g4 {[%clk 0:00:34]}  Qc8 {[%clk 0:00:10]} 37. Rd1 {[%clk 0:00:31]}  Qb7 {[%clk 0:00:10]} 38. Qa2 {[%clk 0:00:27]}  Nd8 {[%clk 0:00:10]} 39. b4 {[%clk 0:00:27]}  Nf7 {[%clk 0:00:09]} 40. bxc5 {[%clk 0:00:24]}  dxc5 {[%clk 0:00:10]} 41. Rd5 {[%clk 0:00:23]}  Rb3 {[%clk 0:00:09]} 42. Kc2 {[%clk 0:00:23]}  Rb6 {[%clk 0:00:09]} 43. Bc1 {[%clk 0:00:23]}  Rc6 {[%clk 0:00:07]} 44. Qb3 {[%clk 0:00:22]}  Qxb3+ {[%clk 0:00:07]} 45. Kxb3 {[%clk 0:00:23]}  Rb6+ {[%clk 0:00:08]} 46. Kc2 {[%clk 0:00:23]}  Rc6 {[%clk 0:00:08]} 47. Ba3 {[%clk 0:00:23]}  Rc7 {[%clk 0:00:07]} 48. Kb3 {[%clk 0:00:23]}  Kh7 {[%clk 0:00:07]} 49. Bc1 {[%clk 0:00:15]}  Kg6 {[%clk 0:00:07]} 50. Ng3 {[%clk 0:00:16]}  Kh7 {[%clk 0:00:06]} 51. Be3 {[%clk 0:00:15]}  Kg6 {[%clk 0:00:06]} 52. Rd1 {[%clk 0:00:15]}  Nd6 {[%clk 0:00:07]} 53. Ra1 {[%clk 0:00:08]}  Rb7+ {[%clk 0:00:07]} 54. Kc2 {[%clk 0:00:08]}  Nxc4 {[%clk 0:00:08]} 55. Rxa6+ {[%clk 0:00:08]}  Kg7 {[%clk 0:00:06]} 56. Bc1 {[%clk 0:00:07]}  Be7 {[%clk 0:00:05]} 57. Nf5+ {[%clk 0:00:07]}  Kf7 {[%clk 0:00:06]} 58. Rxh6 {[%clk 0:00:08]}  Ke8 {[%clk 0:00:04]} 59. Rh7 {[%clk 0:00:08]}  Kf8 {[%clk 0:00:01]} 60. Nxe7 {[%clk 0:00:06]}  Rxe7 {[%clk 0:00:02]} 61. Rxe7 {[%clk 0:00:06]}  Kxe7 {[%clk 0:00:03]} 62. Bxg5+ {[%clk 0:00:07]}  Ke6 {[%clk 0:00:03]} 63. Kd3 {[%clk 0:00:05]}  Nd6 {[%clk 0:00:03]} 64. c4 {[%clk 0:00:06]}  Nb7 {[%clk 0:00:03]} 65. Be3 {[%clk 0:00:06]}  Nd6 {[%clk 0:00:03]} 66. Bxc5 {[%clk 0:00:05]}  Nf7 {[%clk 0:00:04]} 67. Be3 {[%clk 0:00:06]}  Kd6 {[%clk 0:00:04]} 68. c5+ {[%clk 0:00:06]}  Kc6 {[%clk 0:00:04]} 69. Kc4 {[%clk 0:00:07]}  Nd8 {[%clk 0:00:04]} 70. g5 {[%clk 0:00:07]}  Ne6 {[%clk 0:00:05]} 71. g6 {[%clk 0:00:08]}  Ng7 {[%clk 0:00:04]} 72. Bh6 {[%clk 0:00:08]}  Ne6 {[%clk 0:00:05]} 73. g7 {[%clk 0:00:08]} 1-0


[Site "https://www.chess.com"]

[Event "Titled Tuesday Blitz June 21 Late 2022"]
[White "Svane, Rasmus"]
[Black "Sargsyan, Anna M."]
[WhiteFideId "4657101"]
[BlackFideId "13308130"]
[WhiteElo "2674"]
[BlackElo "2271"]
[Result "1-0"]
[Round "02"]
[TimeControl "180+1"]
[Date "2022.06.21"]
[WhiteClock "0:00:13"]
[BlackClock "0:00:01"]

1. Nf3 {[%clk 0:03:00]}  d5 {[%clk 0:02:59]} 2. g3 {[%clk 0:03:01]}  Nf6 {[%clk 0:02:59]} 3. Bg2 {[%clk 0:03:00]}  Bf5 {[%clk 0:03:00]} 4. O-O {[%clk 0:02:59]}  e6 {[%clk 0:03:00]} 5. c4 {[%clk 0:02:58]}  c6 {[%clk 0:03:00]} 6. Qb3 {[%clk 0:02:59]}  Qb6 {[%clk 0:03:00]} 7. d3 {[%clk 0:02:59]}  Nbd7 {[%clk 0:03:00]} 8. cxd5 {[%clk 0:03:00]}  cxd5 {[%clk 0:02:58]} 9. Qxb6 {[%clk 0:02:48]}  Nxb6 {[%clk 0:02:56]} 10. Nc3 {[%clk 0:02:49]}  Be7 {[%clk 0:02:53]} 11. Bf4 {[%clk 0:02:46]}  h6 {[%clk 0:02:51]} 12. Nb5 {[%clk 0:02:45]}  O-O {[%clk 0:02:50]} 13. Rfc1 {[%clk 0:02:40]}  g5 {[%clk 0:02:46]} 14. Be3 {[%clk 0:02:30]}  Rfc8 {[%clk 0:02:10]} 15. Rxc8+ {[%clk 0:02:15]}  Nxc8 {[%clk 0:02:10]} 16. Rc1 {[%clk 0:02:09]}  a6 {[%clk 0:02:04]} 17. Nbd4 {[%clk 0:02:01]}  Bh7 {[%clk 0:02:02]} 18. Rc7 {[%clk 0:01:58]}  Rb8 {[%clk 0:01:56]} 19. Nb3 {[%clk 0:01:32]}  Bd8 {[%clk 0:01:50]} 20. Rc1 {[%clk 0:01:30]}  Nd7 {[%clk 0:01:33]} 21. h4 {[%clk 0:01:26]}  f6 {[%clk 0:01:10]} 22. Nfd4 {[%clk 0:01:19]}  Kf7 {[%clk 0:01:03]} 23. hxg5 {[%clk 0:01:16]}  hxg5 {[%clk 0:01:03]} 24. f4 {[%clk 0:01:09]}  gxf4 {[%clk 0:00:58]} 25. gxf4 {[%clk 0:00:59]}  Nd6 {[%clk 0:00:58]} 26. Bh3 {[%clk 0:00:57]}  Nf8 {[%clk 0:00:49]} 27. Nc5 {[%clk 0:00:53]}  e5 {[%clk 0:00:36]} 28. Nde6 {[%clk 0:00:49]}  Bb6 {[%clk 0:00:20]} 29. Bf2 {[%clk 0:00:41]}  Nxe6 {[%clk 0:00:14]} 30. Bxe6+ {[%clk 0:00:40]}  Ke7 {[%clk 0:00:12]} 31. fxe5 {[%clk 0:00:40]}  fxe5 {[%clk 0:00:10]} 32. Bxd5 {[%clk 0:00:39]}  Bg8 {[%clk 0:00:11]} 33. Bh4+ {[%clk 0:00:31]}  Kf8 {[%clk 0:00:06]} 34. Kf1 {[%clk 0:00:29]}  Bxd5 {[%clk 0:00:06]} 35. Nd7+ {[%clk 0:00:29]}  Kf7 {[%clk 0:00:05]} 36. Nxb8 {[%clk 0:00:29]}  Ke6 {[%clk 0:00:04]} 37. Bf2 {[%clk 0:00:27]}  Bd8 {[%clk 0:00:03]} 38. a4 {[%clk 0:00:24]}  e4 {[%clk 0:00:03]} 39. b4 {[%clk 0:00:22]}  exd3 {[%clk 0:00:02]} 40. exd3 {[%clk 0:00:22]}  Nf5 {[%clk 0:00:03]} 41. Ke2 {[%clk 0:00:18]}  Be7 {[%clk 0:00:02]} 42. Bc5 {[%clk 0:00:18]}  Bg5 {[%clk 0:00:01]} 43. Rg1 {[%clk 0:00:16]}  Bf4 {[%clk 0:00:02]} 44. Rg8 {[%clk 0:00:14]}  Ke5 {[%clk 0:00:01]} 45. Nd7+ {[%clk 0:00:13]}  Ke6 {[%clk 0:00:01]} 46. Nb6 {[%clk 0:00:13]} 1-0


[Site "https://www.chess.com"]

[Event "Titled Tuesday Blitz June 21 Late 2022"]
[White "Tarigan, Gilbert Elroy"]
[Black "Sanchez, Robert"]
[WhiteFideId "7108133"]
[BlackFideId "2034360"]
[WhiteElo "1908"]
[BlackElo "2017"]
[Result "1-0"]
[Round "02"]
[TimeControl "180+1"]
[Date "2022.06.22"]
[WhiteClock "0:00:07"]
[BlackClock "0:00:09"]

1. d4 {[%clk 0:02:59]}  d5 {[%clk 0:02:59]} 2. Bf4 {[%clk 0:02:59]}  Nf6 {[%clk 0:02:55]} 3. e3 {[%clk 0:02:59]}  c6 {[%clk 0:02:53]} 4. Nf3 {[%clk 0:03:00]}  h6 {[%clk 0:02:53]} 5. Nbd2 {[%clk 0:03:00]}  Nh5 {[%clk 0:02:51]} 6. Be5 {[%clk 0:02:59]}  Nd7 {[%clk 0:02:49]} 7. h3 {[%clk 0:02:54]}  Nxe5 {[%clk 0:02:48]} 8. dxe5 {[%clk 0:02:55]}  g6 {[%clk 0:02:47]} 9. c4 {[%clk 0:02:49]}  e6 {[%clk 0:02:39]} 10. Bd3 {[%clk 0:02:33]}  Be7 {[%clk 0:02:21]} 11. Qc2 {[%clk 0:02:33]}  O-O {[%clk 0:02:10]} 12. c5 {[%clk 0:02:09]}  Bd7 {[%clk 0:02:05]} 13. O-O {[%clk 0:02:08]}  b6 {[%clk 0:02:04]} 14. Nb3 {[%clk 0:02:05]}  Ng7 {[%clk 0:02:00]} 15. Nfd4 {[%clk 0:01:58]}  Qc7 {[%clk 0:01:41]} 16. f4 {[%clk 0:01:53]}  Nf5 {[%clk 0:01:38]} 17. Bxf5 {[%clk 0:01:47]}  exf5 {[%clk 0:01:37]} 18. Rac1 {[%clk 0:01:43]}  Rac8 {[%clk 0:01:23]} 19. Qd2 {[%clk 0:01:30]}  f6 {[%clk 0:01:15]} 20. e6 {[%clk 0:01:27]}  Be8 {[%clk 0:01:14]} 21. Rc2 {[%clk 0:01:15]}  Qb7 {[%clk 0:01:08]} 22. Rfc1 {[%clk 0:01:15]}  Kh7 {[%clk 0:00:56]} 23. Rc3 {[%clk 0:01:11]}  Rg8 {[%clk 0:00:53]} 24. Qc2 {[%clk 0:01:11]}  b5 {[%clk 0:00:52]} 25. Na5 {[%clk 0:01:10]}  Qc7 {[%clk 0:00:47]} 26. b4 {[%clk 0:01:11]}  g5 {[%clk 0:00:43]} 27. Qf2 {[%clk 0:00:51]}  g4 {[%clk 0:00:35]} 28. Nxf5 {[%clk 0:00:31]}  gxh3 {[%clk 0:00:35]} 29. g3 {[%clk 0:00:31]}  Bg6 {[%clk 0:00:33]} 30. Nd4 {[%clk 0:00:29]}  Be4 {[%clk 0:00:29]} 31. Kh2 {[%clk 0:00:29]}  f5 {[%clk 0:00:27]} 32. Naxc6 {[%clk 0:00:26]}  Bf6 {[%clk 0:00:26]} 33. Rg1 {[%clk 0:00:25]}  Rg7 {[%clk 0:00:26]} 34. Ne5 {[%clk 0:00:20]}  Rcg8 {[%clk 0:00:24]} 35. Nxb5 {[%clk 0:00:20]}  Qb8 {[%clk 0:00:24]} 36. a4 {[%clk 0:00:18]}  Bxe5 {[%clk 0:00:21]} 37. fxe5 {[%clk 0:00:19]}  Qxe5 {[%clk 0:00:22]} 38. Qf4 {[%clk 0:00:17]}  Qxe6 {[%clk 0:00:19]} 39. Nd4 {[%clk 0:00:15]}  Qf6 {[%clk 0:00:16]} 40. c6 {[%clk 0:00:14]}  Rg4 {[%clk 0:00:14]} 41. Qf2 {[%clk 0:00:12]}  h5 {[%clk 0:00:12]} 42. c7 {[%clk 0:00:10]}  h4 {[%clk 0:00:12]} 43. c8=Q {[%clk 0:00:10]}  hxg3+ {[%clk 0:00:13]} 44. Rxg3 {[%clk 0:00:11]}  Rxg3 {[%clk 0:00:13]} 45. Rc7+ {[%clk 0:00:09]}  Kh8 {[%clk 0:00:09]} 46. Qxg3 {[%clk 0:00:07]} 1-0


[Site "https://www.chess.com"]

[Event "Titled Tuesday Blitz June 21 Late 2022"]
[White "Titichoca Daza, Daniel"]
[Black "Jiganchine, Roman"]
[WhiteFideId "3309550"]
[BlackFideId "2603667"]
[WhiteElo "1912"]
[BlackElo "2209"]
[Result "1/2-1/2"]
[Round "02"]
[TimeControl "180+1"]
[Date "2022.06.22"]
[WhiteClock "0:00:08"]
[BlackClock "0:00:20"]

1. d4 {[%clk 0:03:00]}  d5 {[%clk 0:02:59]} 2. Nf3 {[%clk 0:02:59]}  Nf6 {[%clk 0:02:58]} 3. Bf4 {[%clk 0:03:00]}  c5 {[%clk 0:02:58]} 4. e3 {[%clk 0:03:01]}  e6 {[%clk 0:02:57]} 5. c3 {[%clk 0:03:01]}  Nc6 {[%clk 0:02:57]} 6. Nbd2 {[%clk 0:03:01]}  Bd6 {[%clk 0:02:54]} 7. Bg3 {[%clk 0:03:02]}  O-O {[%clk 0:02:53]} 8. Bd3 {[%clk 0:03:01]}  Qe7 {[%clk 0:02:53]} 9. Ne5 {[%clk 0:02:51]}  Nd7 {[%clk 0:02:51]} 10. Nxd7 {[%clk 0:02:35]}  Qxd7 {[%clk 0:02:50]} 11. Nf3 {[%clk 0:02:09]}  g6 {[%clk 0:02:35]} 12. O-O {[%clk 0:02:08]}  Re8 {[%clk 0:02:30]} 13. e4 {[%clk 0:01:57]}  Bxg3 {[%clk 0:02:19]} 14. hxg3 {[%clk 0:01:56]}  cxd4 {[%clk 0:02:18]} 15. cxd4 {[%clk 0:01:57]}  Nb4 {[%clk 0:02:04]} 16. Ne5 {[%clk 0:01:55]}  Qd8 {[%clk 0:01:58]} 17. Bb5 {[%clk 0:01:51]}  Rf8 {[%clk 0:01:53]} 18. Qb3 {[%clk 0:01:48]}  a5 {[%clk 0:01:50]} 19. a3 {[%clk 0:01:47]}  Na6 {[%clk 0:01:45]} 20. exd5 {[%clk 0:01:47]}  Qxd5 {[%clk 0:01:42]} 21. Qxd5 {[%clk 0:01:44]}  exd5 {[%clk 0:01:43]} 22. Rac1 {[%clk 0:01:43]}  Be6 {[%clk 0:01:42]} 23. Rc3 {[%clk 0:01:37]}  Rac8 {[%clk 0:01:41]} 24. Rfc1 {[%clk 0:01:36]}  Rxc3 {[%clk 0:01:38]} 25. Rxc3 {[%clk 0:01:37]}  f6 {[%clk 0:01:24]} 26. Nd3 {[%clk 0:01:33]}  Rc8 {[%clk 0:01:20]} 27. Rxc8+ {[%clk 0:01:32]}  Bxc8 {[%clk 0:01:20]} 28. Bxa6 {[%clk 0:01:29]}  bxa6 {[%clk 0:01:20]} 29. Kf1 {[%clk 0:01:24]}  Kf7 {[%clk 0:01:19]} 30. Ke2 {[%clk 0:01:23]}  Ke7 {[%clk 0:01:19]} 31. Kd2 {[%clk 0:01:23]}  Kd6 {[%clk 0:01:19]} 32. Kc3 {[%clk 0:01:23]}  Bd7 {[%clk 0:01:13]} 33. Nc5 {[%clk 0:01:22]}  Bb5 {[%clk 0:01:12]} 34. Nb3 {[%clk 0:01:17]}  Bf1 {[%clk 0:01:09]} 35. Nxa5 {[%clk 0:01:11]}  Bxg2 {[%clk 0:01:09]} 36. Nb7+ {[%clk 0:01:11]}  Kc6 {[%clk 0:00:56]} 37. Nc5 {[%clk 0:01:10]}  Bf1 {[%clk 0:00:54]} 38. b4 {[%clk 0:01:06]}  h5 {[%clk 0:00:52]} 39. a4 {[%clk 0:01:04]}  g5 {[%clk 0:00:51]} 40. Kd2 {[%clk 0:00:33]}  h4 {[%clk 0:00:43]} 41. Ke1 {[%clk 0:00:33]}  Bc4 {[%clk 0:00:36]} 42. gxh4 {[%clk 0:00:21]}  gxh4 {[%clk 0:00:36]} 43. f3 {[%clk 0:00:21]}  f5 {[%clk 0:00:19]} 44. Kf2 {[%clk 0:00:21]}  Kb6 {[%clk 0:00:19]} 45. f4 {[%clk 0:00:17]}  a5 {[%clk 0:00:19]} 46. b5 {[%clk 0:00:07]}  Bxb5 {[%clk 0:00:17]} 47. axb5 {[%clk 0:00:08]}  Kxb5 {[%clk 0:00:17]} 48. Kg2 {[%clk 0:00:07]}  a4 {[%clk 0:00:17]} 49. Nxa4 {[%clk 0:00:01]}  Kxa4 {[%clk 0:00:17]} 50. Kh3 {[%clk 0:00:02]}  Kb4 {[%clk 0:00:18]} 51. Kxh4 {[%clk 0:00:03]}  Kc4 {[%clk 0:00:18]} 52. Kg5 {[%clk 0:00:04]}  Kxd4 {[%clk 0:00:19]} 53. Kxf5 {[%clk 0:00:05]}  Ke3 {[%clk 0:00:18]} 54. Ke5 {[%clk 0:00:05]}  d4 {[%clk 0:00:19]} 55. f5 {[%clk 0:00:05]}  d3 {[%clk 0:00:20]} 56. f6 {[%clk 0:00:06]}  d2 {[%clk 0:00:21]} 57. f7 {[%clk 0:00:06]}  d1=Q {[%clk 0:00:21]} 58. f8=Q {[%clk 0:00:07]}  Qd4+ {[%clk 0:00:21]} 59. Ke6 {[%clk 0:00:07]}  Qe4+ {[%clk 0:00:21]} 60. Kd7 {[%clk 0:00:08]}  Qd4+ {[%clk 0:00:20]} 61. Kc7 {[%clk 0:00:08]}  Qc3+ {[%clk 0:00:20]} 62. Kd7 {[%clk 0:00:08]}  Qd4+ {[%clk 0:00:20]} 63. Ke6 {[%clk 0:00:08]}  Qe4+ {[%clk 0:00:20]} 64. Kd7 {[%clk 0:00:08]}  Qd4+ {[%clk 0:00:20]} 1/2-1/2


[Site "https://www.chess.com"]

[Event "Titled Tuesday Blitz June 21 Late 2022"]
[White "Vidonyak, Roman"]
[Black "Luo, Terry"]
[WhiteFideId "14100622"]
[BlackFideId "30931045"]
[WhiteElo "2358"]
[BlackElo "2024"]
[Result "0-1"]
[Round "02"]
[TimeControl "180+1"]
[Date "2022.06.22"]
[WhiteClock "0:00:22"]
[BlackClock "0:00:25"]

1. d4 {[%clk 0:02:56]}  Nf6 {[%clk 0:03:00]} 2. c4 {[%clk 0:02:56]}  e6 {[%clk 0:03:00]} 3. Nc3 {[%clk 0:02:56]}  d5 {[%clk 0:03:00]} 4. cxd5 {[%clk 0:02:56]}  exd5 {[%clk 0:03:00]} 5. Bg5 {[%clk 0:02:56]}  Be6 {[%clk 0:02:59]} 6. e3 {[%clk 0:02:55]}  c6 {[%clk 0:02:57]} 7. Bd3 {[%clk 0:02:55]}  Bd6 {[%clk 0:02:58]} 8. Qc2 {[%clk 0:02:53]}  Nbd7 {[%clk 0:02:57]} 9. Nf3 {[%clk 0:02:52]}  a6 {[%clk 0:02:56]} 10. O-O {[%clk 0:02:48]}  Qc7 {[%clk 0:02:56]} 11. Rfb1 {[%clk 0:02:40]}  h6 {[%clk 0:02:56]} 12. Bh4 {[%clk 0:02:40]}  O-O {[%clk 0:02:33]} 13. b4 {[%clk 0:02:39]}  Nh5 {[%clk 0:02:33]} 14. a4 {[%clk 0:02:35]}  Ndf6 {[%clk 0:02:32]} 15. b5 {[%clk 0:02:23]}  cxb5 {[%clk 0:02:32]} 16. axb5 {[%clk 0:02:20]}  Rfc8 {[%clk 0:02:28]} 17. Rc1 {[%clk 0:02:15]}  a5 {[%clk 0:02:21]} 18. Qb3 {[%clk 0:01:53]}  Ne4 {[%clk 0:02:10]} 19. b6 {[%clk 0:01:37]}  Qb8 {[%clk 0:01:30]} 20. Nb5 {[%clk 0:01:26]}  Rxc1+ {[%clk 0:01:25]} 21. Rxc1 {[%clk 0:01:27]}  a4 {[%clk 0:01:17]} 22. Qb1 {[%clk 0:01:22]}  a3 {[%clk 0:01:08]} 23. Qa2 {[%clk 0:00:52]}  g5 {[%clk 0:00:39]} 24. Nxd6 {[%clk 0:00:45]}  Qxd6 {[%clk 0:00:37]} 25. Bg3 {[%clk 0:00:45]}  Nhxg3 {[%clk 0:00:37]} 26. hxg3 {[%clk 0:00:45]}  Qxb6 {[%clk 0:00:37]} 27. Rb1 {[%clk 0:00:37]}  Qc7 {[%clk 0:00:32]} 28. Bxe4 {[%clk 0:00:31]}  dxe4 {[%clk 0:00:33]} 29. d5 {[%clk 0:00:32]}  exf3 {[%clk 0:00:32]} 30. dxe6 {[%clk 0:00:32]}  fxe6 {[%clk 0:00:25]} 31. Qxe6+ {[%clk 0:00:32]}  Qf7 {[%clk 0:00:26]} 32. Qxf7+ {[%clk 0:00:26]}  Kxf7 {[%clk 0:00:25]} 33. Rxb7+ {[%clk 0:00:27]}  Ke6 {[%clk 0:00:25]} 34. gxf3 {[%clk 0:00:22]}  a2 {[%clk 0:00:25]} 0-1


[Site "https://www.chess.com"]

[Event "Titled Tuesday Blitz June 21 Late 2022"]
[White "Vifleemskaia, Svetlana"]
[Black "Sorensen, Hampus"]
[WhiteFideId "4129490"]
[BlackFideId "8703884"]
[WhiteElo "1929"]
[BlackElo "2262"]
[Result "0-1"]
[Round "02"]
[TimeControl "180+1"]
[Date "2022.06.22"]
[WhiteClock "0:01:47"]
[BlackClock "0:01:48"]

1. d4 {[%clk 0:02:50]}  Nf6 {[%clk 0:02:59]} 2. c4 {[%clk 0:02:49]}  g6 {[%clk 0:02:59]} 3. Nc3 {[%clk 0:02:42]}  d5 {[%clk 0:02:55]} 4. cxd5 {[%clk 0:02:41]}  Nxd5 {[%clk 0:02:53]} 5. Bd2 {[%clk 0:02:42]}  Bg7 {[%clk 0:02:52]} 6. e4 {[%clk 0:02:42]}  Nxc3 {[%clk 0:02:52]} 7. Bxc3 {[%clk 0:02:41]}  O-O {[%clk 0:02:50]} 8. Qd2 {[%clk 0:02:41]}  b6 {[%clk 0:02:49]} 9. Nf3 {[%clk 0:02:38]}  Bb7 {[%clk 0:02:48]} 10. Bd3 {[%clk 0:02:37]}  Nd7 {[%clk 0:02:40]} 11. O-O {[%clk 0:02:35]}  e6 {[%clk 0:02:34]} 12. Rad1 {[%clk 0:02:33]}  c5 {[%clk 0:02:32]} 13. Bb1 {[%clk 0:02:32]}  cxd4 {[%clk 0:02:29]} 14. Bxd4 {[%clk 0:02:30]}  e5 {[%clk 0:02:13]} 15. Bc3 {[%clk 0:02:26]}  Nc5 {[%clk 0:02:10]} 16. Qxd8 {[%clk 0:02:16]}  Raxd8 {[%clk 0:02:07]} 17. Bxe5 {[%clk 0:02:16]}  Nxe4 {[%clk 0:02:00]} 18. Bxg7 {[%clk 0:02:14]}  Kxg7 {[%clk 0:01:59]} 19. h3 {[%clk 0:02:04]}  Nc5 {[%clk 0:01:55]} 20. Ne5 {[%clk 0:01:58]}  Rfe8 {[%clk 0:01:54]} 21. Nc4 {[%clk 0:01:56]}  Ba6 {[%clk 0:01:50]} 22. Rxd8 {[%clk 0:01:46]}  Rxd8 {[%clk 0:01:48]} 23. Rc1 {[%clk 0:01:47]}  Bxc4 {[%clk 0:01:48]} 0-1


[Site "https://www.chess.com"]